bitfinex/quotes_BTCUSD_20250813
["timestamp","ask_amount","ask_price","bid_price","bid_amount"]
[1755115339281,1.69745083,122650.0,122640.0,4.94444934]
[1755115339459,1.69445083,122650.0,122640.0,4.94444934]
[1755115339663,1.69845083,122650.0,122640.0,4.94444934]
[1755115339880,1.69945083,122650.0,122640.0,4.94444934]
[1755115340266,1.70545083,122650.0,122640.0,4.94444934]
[1755115342031,1.70545083,122650.0,122640.0,4.92676096]
[1755115342263,1.70545083,122650.0,122640.0,4.77445826]
[1755115342374,1.70545083,122650.0,122640.0,4.91257826]
[1755115343756,1.70970147,122650.0,122640.0,4.91257826]
[1755115344199,1.70970147,122650.0,122640.0,4.77445826]
[1755115344444,1.70970147,122650.0,122640.0,4.34837995]
[1755115344445,1.79539147,122650.0,122640.0,4.34837995]
[1755115344654,1.79539147,122650.0,122640.0,4.35128174]
[1755115344831,1.79539147,122650.0,122640.0,4.15584174]
[1755115345043,1.72588147,122650.0,122640.0,4.15584174]
[1755115345215,1.79019147,122650.0,122640.0,4.15584174]
[1755115345432,1.76519147,122650.0,122640.0,4.15584174]
[1755115345597,1.31164488,122650.0,122640.0,4.15584174]
[1755115345804,1.31164488,122650.0,122640.0,4.01772174]
[1755115346020,1.22916045,122650.0,122640.0,4.01772174]
[1755115346211,1.69025802,122650.0,122640.0,4.01772174]
[1755115346523,1.69025802,122650.0,122640.0,4.15584174]
[1755115346524,1.70770704,122650.0,122640.0,4.15584174]
[1755115346786,1.79339704,122650.0,122640.0,4.01772174]
[1755115346969,1.79339704,122650.0,122640.0,4.15584174]
[1755115347192,1.87588147,122650.0,122640.0,3.77598277]
[1755115347371,1.90088147,122650.0,122640.0,3.51403123]
[1755115347579,1.87588147,122650.0,122640.0,3.35330829]
[1755115347791,1.90088147,122650.0,122640.0,3.34515901]
[1755115348211,1.89488147,122650.0,122640.0,3.33700973]
[1755115348533,1.89988147,122650.0,122640.0,3.33700973]
[1755115348747,1.89988147,122650.0,122640.0,3.19074045]
[1755115348958,1.89488147,122650.0,122640.0,3.32071059]
[1755115349186,1.89588147,122650.0,122640.0,3.32071059]
[1755115349397,1.89588147,122650.0,122640.0,3.31256073]
[1755115349586,1.89988147,122650.0,122640.0,3.31256073]
[1755115349789,1.89988147,122650.0,122640.0,3.30441087]
[1755115349939,1.89588147,122650.0,122640.0,3.30441087]
[1755115350276,1.89588147,122650.0,122640.0,3.29626101]
[1755115350518,1.90088147,122650.0,122640.0,3.29626101]
[1755115350672,1.90088147,122650.0,122640.0,3.14999115]
[1755115350904,1.90088147,122650.0,122640.0,3.14184129]
[1755115351107,1.90088147,122650.0,122640.0,3.27996129]
[1755115351308,1.87588147,122650.0,122640.0,3.27181143]
[1755115351511,1.90088147,122650.0,122640.0,2.75605359]
[1755115351679,1.90088147,122650.0,122640.0,2.3922179]
[1755115351882,1.90088147,122650.0,122640.0,2.36604633]
[1755115352147,1.93555343,122650.0,122640.0,1.97007189]
[1755115352348,1.93555343,122650.0,122640.0,1.54644129]
[1755115352349,1.88602397,122650.0,122640.0,1.54644129]
[1755115352498,3.14295453,122650.0,122640.0,1.46898475]
[1755115352698,2.18400453,122650.0,122640.0,1.46898475]
[1755115352955,2.18400453,122650.0,122640.0,1.43231036]
[1755115353218,2.18400453,122650.0,122640.0,0.81130851]
[1755115353426,2.18400453,122650.0,122640.0,0.7433192]
[1755115353635,0.78124454,122620.0,122610.0,0.0195]
[1755115353752,1.74608411,122620.0,122610.0,0.15762]
[1755115353959,1.74103411,122620.0,122610.0,0.15762]
[1755115354159,1.82375736,122620.0,122610.0,0.15762]
[1755115354981,1.38765979,122620.0,122610.0,0.15762]
[1755115355202,1.29277634,122620.0,122610.0,0.02151]
[1755115355407,1.29061634,122620.0,122610.0,0.16279]
[1755115355602,1.32308334,122620.0,122610.0,0.16379]
[1755115355802,1.23739334,122620.0,122610.0,0.16379]
[1755115356011,1.21239334,122620.0,122610.0,0.16379]
[1755115356214,1.30437749,122620.0,122610.0,0.16379]
[1755115356440,1.27892847,122620.0,122610.0,0.16279]
[1755115356637,1.27892847,122620.0,122610.0,0.16379]
[1755115356854,1.29837749,122620.0,122610.0,0.15963]
[1755115357196,1.29637749,122620.0,122610.0,0.15963]
[1755115357337,1.29637749,122620.0,122610.0,0.16163]
[1755115357727,1.30062549,122620.0,122610.0,0.02351]
[1755115357952,1.30062549,122620.0,122610.0,0.16479]
[1755115358178,1.27562549,122620.0,122610.0,0.16479]
[1755115358353,1.30062549,122620.0,122610.0,0.16479]
[1755115358565,1.32482526,122620.0,122610.0,0.16479]
[1755115358763,1.32582526,122620.0,122610.0,0.16479]
[1755115359003,0.50208704,122620.0,122610.0,0.02667]
[1755115359190,0.27043825,122620.0,122610.0,0.09265]
[1755115359387,0.25819025,122620.0,122610.0,0.22877]
[1755115359603,0.26019025,122620.0,122610.0,0.22877]
[1755115359778,0.25819025,122620.0,122610.0,0.22877]
[1755115360497,0.25719025,122620.0,122610.0,0.09065]
[1755115360698,0.25719025,122620.0,122610.0,0.22877]
[1755115360926,0.93356139,122620.0,122610.0,0.09165]
[1755115361074,0.77045587,122620.0,122610.0,0.02567]
[1755115361273,1.11045587,122620.0,122610.0,0.16479]
[1755115361478,1.29783688,122620.0,122610.0,0.16479]
[1755115361981,1.29783688,122620.0,122610.0,0.02667]
[1755115362207,1.30208462,122620.0,122610.0,0.16159]
[1755115362414,1.30208462,122620.0,122610.0,0.15959]
[1755115362628,1.30308462,122620.0,122610.0,0.15959]
[1755115362842,1.30408462,122620.0,122610.0,0.15959]
[1755115363042,1.30308462,122620.0,122610.0,0.15959]
[1755115363243,1.30508462,122620.0,122610.0,0.02151]
[1755115363466,1.30724462,122620.0,122610.0,0.02151]
[1755115363666,1.30924462,122620.0,122610.0,0.15959]
[1755115363905,1.30924462,122620.0,122610.0,0.02151]
[1755115364106,1.30924462,122620.0,122610.0,0.15959]
[1755115364321,1.30924462,122620.0,122610.0,0.02151]
[1755115364479,1.30924462,122620.0,122610.0,0.15959]
[1755115364690,1.30708462,122620.0,122610.0,0.15959]
[1755115364885,1.30708462,122620.0,122610.0,0.02467]
[1755115364886,0.60643799,122620.0,122610.0,0.02467]
[1755115365112,0.60643799,122620.0,122610.0,0.22873]
[1755115365113,0.26219025,122620.0,122610.0,0.22873]
[1755115365330,0.26219025,122620.0,122610.0,0.09065]
[1755115365486,0.26219025,122620.0,122610.0,0.22873]
[1755115366094,0.25719025,122620.0,122610.0,0.09065]
[1755115366302,0.23272325,122620.0,122610.0,0.09267898]
[1755115366524,0.23272325,122620.0,122610.0,0.53081553]
[1755115366722,0.23272325,122620.0,122610.0,0.66477757]
[1755115367117,0.57272325,122620.0,122610.0,0.09064]
[1755115367332,0.23272325,122620.0,122610.0,0.22968]
[1755115367711,0.23272325,122620.0,122610.0,0.22668]
[1755115368153,0.23272325,122620.0,122610.0,0.09064]
[1755115368344,0.23272325,122620.0,122610.0,0.22868]
[1755115369194,0.23272325,122620.0,122610.0,0.23068]
[1755115369358,0.23272325,122620.0,122610.0,0.22668]
[1755115369782,0.23272325,122620.0,122610.0,0.22768]
[1755115372197,0.23272325,122620.0,122610.0,0.22969]
[1755115372592,0.23272325,122620.0,122610.0,0.09165]
[1755115372797,0.23272325,122620.0,122610.0,0.23164898]
[1755115373032,0.23272325,122620.0,122610.0,0.22961]
[1755115373877,0.23272325,122620.0,122610.0,0.09165]
[1755115374080,0.23272325,122620.0,122610.0,0.23164898]
[1755115374278,0.23272325,122620.0,122610.0,0.22961]
[1755115374961,0.23272325,122620.0,122610.0,0.55274757]
[1755115375164,0.23272325,122620.0,122610.0,0.69070757]
[1755115377001,0.23272325,122620.0,122610.0,0.55274757]
[1755115377201,0.08272325,122620.0,122610.0,0.55274757]
[1755115377365,0.08272325,122620.0,122610.0,0.69066757]
[1755115377723,0.08262325,122620.0,122610.0,0.55274757]
[1755115378076,0.08262325,122620.0,122610.0,0.69066757]
[1755115378314,0.08262325,122620.0,122610.0,0.79234757]
[1755115378523,0.08262325,122620.0,122610.0,0.65442757]
[1755115378664,0.08262325,122620.0,122610.0,0.79134757]
[1755115379116,0.08262325,122620.0,122610.0,0.65642757]
[1755115379492,0.08262325,122620.0,122610.0,0.79430757]
[1755115380100,0.07562325,122620.0,122610.0,0.79430757]
[1755115380711,0.07562325,122620.0,122610.0,0.65642757]
[1755115380985,0.07562325,122620.0,122610.0,0.79430757]
[1755115381194,0.07562325,122620.0,122610.0,0.38637304]
[1755115381494,0.07562325,122620.0,122610.0,0.52425304]
[1755115382981,0.07562325,122620.0,122610.0,0.38637304]
[1755115383191,0.07562325,122620.0,122600.0,0.11229357]
[1755115383396,0.08062325,122620.0,122610.0,0.3334]
[1755115383567,0.07860325,122620.0,122610.0,0.3334]
[1755115383868,0.07562325,122620.0,122610.0,0.3334]
[1755115384427,0.08390136,122620.0,122610.0,0.19556]
[1755115384670,0.23890136,122620.0,122610.0,0.19556]
[1755115384882,0.23890136,122620.0,122610.0,0.33336]
[1755115386036,0.23890136,122620.0,122610.0,0.33436]
[1755115389366,0.23890136,122620.0,122610.0,0.19656]
[1755115389579,0.23890136,122620.0,122610.0,0.33432]
[1755115392644,0.23890136,122620.0,122610.0,0.19656]
[1755115392841,0.57890136,122620.0,122610.0,0.19656]
[1755115393074,0.66138579,122620.0,122610.0,0.19656]
[1755115393193,0.66138579,122620.0,122610.0,0.33428]
[1755115393387,0.57890136,122620.0,122610.0,0.33428]
[1755115393637,1.01499893,122620.0,122610.0,0.33428]
[1755115393838,0.57890136,122620.0,122610.0,0.33428]
[1755115394472,0.57890136,122620.0,122610.0,0.33324]
[1755115395026,0.42890136,122620.0,122610.0,0.33324]
[1755115395270,0.57890136,122620.0,122610.0,0.33324]
[1755115395660,0.57990136,122620.0,122610.0,0.33324]
[1755115396688,0.34,122610.0,122600.0,0.01061357]
[1755115396890,0.42772325,122610.0,122600.0,0.20617357]
[1755115397217,0.42772325,122610.0,122600.0,0.34381357]
[1755115397903,0.42772325,122610.0,122600.0,0.34396022]
[1755115402329,0.86382082,122610.0,122600.0,0.20632022]
[1755115402649,0.93066853,122610.0,122600.0,0.34392022]
[1755115402849,0.94106132,122610.0,122600.0,0.34392022]
[1755115403052,1.09378736,122610.0,122600.0,0.34388022]
[1755115403362,1.09378736,122610.0,122600.0,0.20632022]
[1755115403506,1.13623638,122610.0,122600.0,0.34388022]
[1755115403735,1.14048428,122610.0,122600.0,0.34388022]
[1755115403939,1.16794828,122610.0,122600.0,0.34388022]
[1755115404127,1.25043271,122610.0,122600.0,0.34388022]
[1755115404887,1.25443271,122610.0,122600.0,0.34388022]
[1755115405812,0.75148743,122610.0,122600.0,0.20632022]
[1755115405948,1.23010057,122610.0,122600.0,0.34384022]
[1755115406149,1.06698174,122610.0,122600.0,0.34384022]
[1755115406368,0.48088417,122610.0,122600.0,0.34384022]
[1755115406567,0.794003,122610.0,122600.0,0.34384022]
[1755115406769,0.644003,122610.0,122600.0,0.34384022]
[1755115406970,0.794003,122610.0,122600.0,0.34384022]
[1755115407190,0.63088417,122610.0,122600.0,0.20632022]
[1755115407474,0.63088417,122610.0,122600.0,0.34384022]
[1755115407596,0.48088417,122610.0,122600.0,0.20632022]
[1755115407799,0.57972325,122610.0,122600.0,0.34384022]
[1755115408233,0.57672325,122610.0,122600.0,0.34384022]
[1755115408445,0.57998325,122610.0,122600.0,0.20632022]
[1755115408640,0.58198325,122610.0,122600.0,0.34384022]
[1755115408844,0.57998325,122610.0,122600.0,0.34384022]
[1755115409365,0.58098325,122610.0,122600.0,0.34384022]
[1755115409763,0.57898325,122610.0,122600.0,0.34384022]
[1755115410134,0.57998325,122610.0,122600.0,0.20632022]
[1755115410248,1.19664867,122610.0,122600.0,0.34380022]
[1755115410459,1.1291331,122610.0,122600.0,0.20307022]
[1755115410704,1.22589681,122610.0,122600.0,0.20307022]
[1755115411365,1.77435438,122610.0,122600.0,0.20307022]
[1755115412008,1.77435438,122610.0,122600.0,0.34051022]
[1755115412279,1.77335438,122610.0,122600.0,0.34051022]
[1755115412479,1.77935438,122610.0,122600.0,0.34051022]
[1755115412865,1.86183881,122610.0,122600.0,0.34051022]
[1755115413061,1.86183881,122610.0,122600.0,0.20307022]
[1755115413266,1.86183881,122610.0,122600.0,0.34051022]
[1755115413489,1.86083881,122610.0,122600.0,0.34051022]
[1755115413744,1.86483881,122610.0,122600.0,0.34151022]
[1755115415753,0.49,122550.0,122540.0,0.0031]
[1755115415953,0.57272325,122550.0,122540.0,0.33559]
[1755115416112,0.57272325,122550.0,122540.0,0.19819]
[1755115416296,0.57272325,122550.0,122540.0,0.33555]
[1755115416517,0.73592194,122550.0,122540.0,0.33555]
[1755115416713,0.82659932,122550.0,122540.0,0.33559]
[1755115416923,1.18547246,122550.0,122540.0,0.19819]
[1755115417120,1.18555195,122550.0,122540.0,0.19804]
[1755115417439,1.02235326,122550.0,122540.0,0.3354]
[1755115417638,1.02235326,122550.0,122540.0,0.33755]
[1755115417837,1.18241195,122550.0,122540.0,0.33755]
[1755115418227,1.18241195,122550.0,122540.0,0.33855]
[1755115418647,1.18555195,122550.0,122540.0,0.3364]
[1755115418917,1.18555195,122550.0,122540.0,0.19904]
[1755115419119,1.24671091,122550.0,122540.0,0.19804]
[1755115419322,1.02235326,122550.0,122540.0,0.33536]
[1755115419648,1.01809326,122550.0,122540.0,0.33336]
[1755115419858,1.01809326,122550.0,122540.0,0.33551]
[1755115420056,1.01909326,122550.0,122540.0,0.33551]
[1755115420256,0.58511569,122550.0,122540.0,0.33551]
[1755115420418,1.02121326,122550.0,122540.0,0.33551]
[1755115420624,1.02121326,122550.0,122540.0,0.19819]
[1755115420834,1.02121326,122550.0,122540.0,0.33551]
[1755115421042,1.01909326,122550.0,122540.0,0.33551]
[1755115421248,1.02435326,122550.0,122540.0,0.33336]
[1755115421540,1.01302031,122550.0,122540.0,0.33551]
[1755115421740,1.01090031,122550.0,122540.0,0.33551]
[1755115422240,0.57480274,122550.0,122540.0,0.33551]
[1755115422650,0.57480274,122550.0,122540.0,0.19819]
[1755115422851,0.57480274,122550.0,122540.0,0.33551]
[1755115423086,0.57480274,122550.0,122540.0,0.33547]
[1755115423488,1.01616031,122550.0,122540.0,0.19604]
[1755115423677,1.179359,122550.0,122540.0,0.19604]
[1755115423880,1.179359,122550.0,122540.0,0.33332]
[1755115424084,1.179359,122550.0,122540.0,0.19604]
[1755115424286,1.179359,122550.0,122540.0,0.33332]
[1755115424661,1.179359,122550.0,122540.0,0.19604]
[1755115424861,1.179359,122550.0,122540.0,0.33332]
[1755115425539,1.01616031,122550.0,122540.0,0.19604]
[1755115425739,1.01616031,122550.0,122540.0,0.33328]
[1755115427502,1.179359,122550.0,122540.0,0.33328]
[1755115427810,1.179359,122550.0,122540.0,0.19604]
[1755115428010,1.18947374,122550.0,122540.0,0.33324]
[1755115429163,1.23139876,122550.0,122540.0,0.33324]
[1755115430099,1.23139876,122550.0,122540.0,0.19604]
[1755115430300,1.23139876,122550.0,122540.0,0.3332]
[1755115430730,1.25639876,122550.0,122540.0,0.19604]
[1755115430907,1.69674672,122550.0,122540.0,0.19604]
[1755115431200,1.69674672,122550.0,122540.0,0.3332]
[1755115431359,1.72174672,122550.0,122540.0,0.3332]
[1755115432355,1.72599736,122550.0,122540.0,0.3332]
[1755115434485,1.72599736,122550.0,122540.0,0.19604]
[1755115434716,1.72599736,122550.0,122540.0,0.33312]
[1755115435214,1.72599736,122550.0,122540.0,0.19604]
[1755115435419,1.72599736,122550.0,122540.0,0.33312]
[1755115435631,1.72599736,122550.0,122540.0,0.19604]
[1755115436266,1.81172736,122550.0,122540.0,0.33312]
[1755115436727,1.80972736,122550.0,122540.0,0.33312]
[1755115436966,1.81172736,122550.0,122540.0,0.33312]
[1755115437117,1.82172736,122550.0,122540.0,0.33312]
[1755115438715,1.82172736,122550.0,122540.0,0.33308]
[1755115441166,1.73599736,122550.0,122540.0,0.19604]
[1755115441607,1.73599736,122550.0,122540.0,0.333]
[1755115441823,1.73599736,122550.0,122540.0,0.19604]
[1755115442028,1.73599736,122550.0,122540.0,0.333]
[1755115443489,1.27233603,122550.0,122540.0,0.19604]
[1755115443703,1.7084336,122550.0,122540.0,0.19604]
[1755115444038,1.72588262,122550.0,122540.0,0.19604]
[1755115444242,1.71788262,122550.0,122540.0,0.33296]
[1755115444482,1.80036705,122550.0,122540.0,0.33296]
[1755115445256,1.62536705,122550.0,122540.0,0.33296]
[1755115445460,1.80036705,122550.0,122540.0,0.33296]
[1755115445709,1.62536705,122550.0,122540.0,0.33296]
[1755115445921,1.80036705,122550.0,122540.0,0.33296]
[1755115446462,1.80036705,122550.0,122540.0,0.33292]
[1755115446817,1.62536705,122550.0,122540.0,0.33292]
[1755115447022,1.79722705,122550.0,122540.0,0.19814]
[1755115447222,1.79722705,122550.0,122540.0,0.33498]
[1755115447223,1.23452505,122550.0,122540.0,0.33498]
[1755115447395,1.69562262,122550.0,122540.0,0.33498]
[1755115448281,0.71387734,122550.0,122540.0,0.19814]
[1755115448483,0.27352913,122550.0,122540.0,0.20084]
[1755115448858,0.27352913,122550.0,122540.0,0.33768]
[1755115449061,1.0496267,122550.0,122540.0,0.33768]
[1755115449403,0.7076267,122550.0,122540.0,0.33768]
[1755115449699,1.0486267,122550.0,122540.0,0.33768]
[1755115450071,1.0466267,122550.0,122540.0,0.33768]
[1755115450288,1.0466267,122550.0,122540.0,0.33764]
[1755115450485,0.61052913,122550.0,122540.0,0.33864]
[1755115451097,0.60252913,122550.0,122540.0,0.20184]
[1755115451279,1.0386267,122550.0,122540.0,0.33864]
[1755115451478,1.0386267,122550.0,122540.0,0.33356]
[1755115455297,1.0386267,122550.0,122540.0,0.19676]
[1755115455501,1.0386267,122550.0,122540.0,0.33344]
[1755115456387,0.82956111,122550.0,122540.0,0.19676]
[1755115456559,1.70175625,122550.0,122540.0,0.3334]
[1755115457032,1.70175625,122550.0,122540.0,0.19676]
[1755115457228,1.70175625,122550.0,122540.0,0.3334]
[1755115458072,1.70175625,122550.0,122540.0,0.19676]
[1755115458312,1.70175625,122550.0,122540.0,0.3334]
[1755115459089,1.72675625,122550.0,122540.0,0.19676]
[1755115459292,1.72675625,122550.0,122540.0,0.33336]
[1755115460272,1.72675625,122550.0,122540.0,0.33236]
[1755115460572,1.75375625,122550.0,122540.0,0.33236]
[1755115460716,1.75275625,122550.0,122540.0,0.33236]
[1755115461304,1.75475625,122550.0,122540.0,0.33236]
[1755115464237,1.75900689,122550.0,122540.0,0.33236]
[1755115464515,1.66770262,122550.0,122540.0,0.19576]
[1755115464756,1.66770262,122550.0,122480.0,0.03034773]
[1755115464757,0.15,122500.0,122480.0,0.03034773]
[1755115464936,0.15,122500.0,122490.0,0.33636196]
[1755115465149,0.23272325,122500.0,122490.0,0.4112]
[1755115465566,0.23272325,122500.0,122490.0,0.27464]
[1755115465567,0.08272325,122500.0,122490.0,0.27464]
[1755115465797,0.08272325,122500.0,122490.0,0.84525532]
[1755115465923,0.15,122510.0,122490.0,0.70873532]
[1755115466130,0.23272325,122510.0,122500.0,0.13652]
[1755115466335,0.23272325,122510.0,122500.0,0.14060162]
[1755115467818,0.23272325,122510.0,122500.0,0.21952162]
[1755115467964,0.23272325,122510.0,122500.0,0.21544]
[1755115469712,0.08272325,122510.0,122500.0,0.21544]
[1755115470533,0.08272325,122510.0,122500.0,0.07892]
[1755115470749,0.08272325,122510.0,122500.0,0.21944162]
[1755115470959,0.42272325,122510.0,122500.0,0.07892]
[1755115471161,0.85882082,122510.0,122500.0,0.13644]
[1755115471526,0.42272325,122510.0,122500.0,0.13644]
[1755115471761,0.42272325,122510.0,122500.0,0.13944]
[1755115471964,0.44720025,122510.0,122500.0,0.13944]
[1755115472171,0.44720025,122510.0,122500.0,0.13644]
[1755115472378,0.15,122500.0,122490.0,0.196209]
[1755115472743,0.14957096,122500.0,122490.0,0.332649]
[1755115473225,1.23893383,122500.0,122490.0,0.196209]
[1755115473424,1.08089853,122500.0,122490.0,0.196209]
[1755115473627,1.08089853,122500.0,122490.0,0.000489]
[1755115473788,1.11336167,122500.0,122490.0,0.332609]
[1755115473994,1.11336167,122500.0,122490.0,0.196209]
[1755115474195,1.11336167,122500.0,122490.0,0.332609]
[1755115474818,1.11336167,122500.0,122490.0,0.196209]
[1755115475016,1.11336167,122500.0,122490.0,0.332609]
[1755115475262,0.6772641,122500.0,122490.0,0.332609]
[1755115475450,0.15,122480.0,122460.0,0.10176]
[1755115475655,0.23272325,122480.0,122470.0,0.19572]
[1755115476398,0.08272325,122480.0,122470.0,0.19572]
[1755115476779,0.08272325,122480.0,122470.0,0.33208]
[1755115477002,0.08372325,122480.0,122470.0,0.33908]
[1755115477393,0.15057096,122480.0,122470.0,0.20272]
[1755115477604,0.73666853,122480.0,122470.0,0.33912]
[1755115478446,0.30057096,122480.0,122470.0,0.33912]
[1755115479492,0.30057096,122480.0,122470.0,0.19576]
[1755115480833,0.30057096,122480.0,122470.0,0.33212]
[1755115481019,0.73975853,122480.0,122470.0,0.33212]
[1755115481815,0.74189853,122480.0,122470.0,0.33212]
[1755115482018,0.30580096,122480.0,122470.0,0.33212]
[1755115482919,0.74189853,122480.0,122470.0,0.33212]
[1755115483739,1.08189853,122480.0,122470.0,0.19576]
[1755115483947,1.08189853,122480.0,122470.0,0.33212]
[1755115484193,1.10638353,122480.0,122470.0,0.33212]
[1755115484441,1.10638353,122480.0,122470.0,0.33208]
[1755115485305,1.10738353,122480.0,122470.0,0.33208]
[1755115485514,1.10638353,122480.0,122470.0,0.33208]
[1755115485740,1.35215992,122480.0,122470.0,0.19576]
[1755115485958,1.19186796,122480.0,122470.0,0.33308]
[1755115486412,0.67328596,122480.0,122470.0,0.33308]
[1755115486621,1.10938353,122480.0,122470.0,0.33308]
[1755115487280,1.10938353,122480.0,122470.0,0.19676]
[1755115487488,0.67328596,122480.0,122470.0,0.33308]
[1755115487696,1.10938353,122480.0,122470.0,0.33308]
[1755115489760,1.37429983,122480.0,122470.0,0.19676]
[1755115489967,1.37854593,122480.0,122470.0,0.33308]
[1755115490519,1.37454593,122480.0,122470.0,0.33208]
[1755115490740,1.37754593,122480.0,122470.0,0.33308]
[1755115490944,1.38254593,122480.0,122470.0,0.19676]
[1755115491142,1.38254593,122480.0,122470.0,0.33308]
[1755115493141,1.46503036,122480.0,122470.0,0.33308]
[1755115495844,1.46503036,122480.0,122470.0,0.19676]
[1755115496055,1.46503036,122480.0,122470.0,0.001]
[1755115496282,1.46503036,122480.0,122470.0,0.33308]
[1755115498712,1.68975601,122480.0,122470.0,0.1968]
[1755115499022,1.68975601,122480.0,122470.0,0.001]
[1755115499246,1.68975601,122480.0,122470.0,0.33308]
[1755115499486,1.68975601,122480.0,122450.0,0.1018]
[1755115499487,0.65331863,122460.0,122450.0,0.1018]
[1755115499710,0.65331863,122460.0,122410.0,0.0004]
[1755115499711,0.67082101,122420.0,122410.0,0.0004]
[1755115499926,0.67082101,122420.0,122410.0,0.19668937]
[1755115499927,1.03992995,122420.0,122410.0,0.19668937]
[1755115500166,1.67802462,122420.0,122410.0,0.19668937]
[1755115500385,1.67802462,122420.0,122410.0,0.33296937]
[1755115501309,1.67802462,122420.0,122410.0,0.19668937]
[1755115501310,1.72338683,122420.0,122410.0,0.19668937]
[1755115501537,1.80587126,122420.0,122410.0,0.19668937]
[1755115501785,1.80587126,122420.0,122410.0,0.33296937]
[1755115502017,1.06687495,122420.0,122410.0,0.19668937]
[1755115502287,1.06489495,122420.0,122410.0,0.33296937]
[1755115502728,1.03420767,122420.0,122410.0,0.33296937]
[1755115503413,1.03728767,122420.0,122410.0,0.33296937]
[1755115504320,1.05870567,122420.0,122410.0,0.33296937]
[1755115504969,1.07309714,122420.0,122410.0,0.33296937]
[1755115505146,1.05870567,122420.0,122410.0,0.19668937]
[1755115505492,0.63658224,122420.0,122410.0,0.33496937]
[1755115505662,0.62208625,122420.0,122410.0,0.33496937]
[1755115506504,0.28208625,122420.0,122410.0,0.19868937]
[1755115506811,0.23372325,122420.0,122410.0,0.33496937]
[1755115507030,0.67134267,122420.0,122410.0,0.33496937]
[1755115507234,0.23372325,122420.0,122410.0,0.19868937]
[1755115507433,0.67134267,122420.0,122410.0,0.33496937]
[1755115507668,0.67134267,122420.0,122410.0,0.19868937]
[1755115507884,0.69619358,122420.0,122410.0,0.33496937]
[1755115508260,0.25857416,122420.0,122410.0,0.19868937]
[1755115508465,0.25857416,122420.0,122410.0,0.33496937]
[1755115508706,0.23372325,122420.0,122410.0,0.33496937]
[1755115508911,0.08372325,122420.0,122410.0,0.19868937]
[1755115509118,0.001,122420.0,122410.0,0.19868937]
[1755115509524,0.001,122420.0,122410.0,0.33496937]
[1755115509728,0.15,122430.0,122410.0,0.33496937]
[1755115509929,0.23272325,122430.0,122410.0,0.33496937]
[1755115510129,0.29957096,122430.0,122410.0,0.33496937]
[1755115510391,0.29957096,122430.0,122410.0,0.33596937]
[1755115510597,0.08272325,122420.0,122410.0,0.19968937]
[1755115510832,0.52034267,122420.0,122410.0,0.33596937]
[1755115511007,0.08272325,122420.0,122410.0,0.19968937]
[1755115511217,0.08272325,122420.0,122410.0,0.33396937]
[1755115511635,0.001,122420.0,122410.0,0.33696937]
[1755115512050,0.001,122420.0,122410.0,0.33896937]
[1755115513085,0.001,122420.0,122410.0,0.33696937]
[1755115513492,0.001,122420.0,122410.0,0.33896937]
[1755115515868,0.001,122420.0,122410.0,0.20268937]
[1755115516072,0.001,122420.0,122410.0,0.33896937]
[1755115517990,0.001,122420.0,122410.0,0.20268937]
[1755115518356,0.001,122420.0,122410.0,0.33904937]
[1755115518746,0.001,122420.0,122410.0,0.20268937]
[1755115518948,0.001,122420.0,122410.0,0.33904937]
[1755115519148,0.001,122420.0,122410.0,0.33896937]
[1755115519555,0.001,122420.0,122410.0,0.33904937]
[1755115520406,0.001,122420.0,122410.0,0.33916937]
[1755115521166,0.001,122420.0,122410.0,0.77678879]
[1755115521379,0.001,122420.0,122410.0,0.64030879]
[1755115521587,0.001,122420.0,122410.0,0.77690879]
[1755115521789,0.001,122420.0,122410.0,0.70775781]
[1755115522208,0.001,122420.0,122410.0,0.68275781]
[1755115522407,0.001,122420.0,122410.0,0.81931781]
[1755115522606,0.001,122420.0,122410.0,0.81735781]
[1755115522827,0.001,122420.0,122410.0,1.18235781]
[1755115523055,0.002,122420.0,122410.0,0.99055781]
[1755115523360,0.002,122420.0,122410.0,0.96555781]
[1755115523494,0.002,122420.0,122410.0,1.00555781]
[1755115523694,0.001,122420.0,122410.0,0.42733839]
[1755115523955,0.001,122420.0,122410.0,0.58885839]
[1755115524179,0.002,122420.0,122410.0,0.43133839]
[1755115524349,0.002,122420.0,122410.0,0.66547781]
[1755115525571,0.002,122420.0,122410.0,0.52895781]
[1755115525723,0.002,122420.0,122410.0,0.66543781]
[1755115525904,0.002,122420.0,122410.0,0.66535781]
[1755115526114,0.56877511,122470.0,122410.0,0.52895781]
[1755115526115,0.55385748,122470.0,122410.0,0.52895781]
[1755115526309,0.06684771,122430.0,122410.0,0.66837781]
[1755115526649,0.06684771,122430.0,122420.0,0.13754]
[1755115526846,0.06684771,122430.0,122420.0,0.13942]
[1755115527760,0.06784771,122430.0,122420.0,0.13942]
[1755115528265,0.06884771,122430.0,122420.0,0.14242]
[1755115528690,0.06884771,122430.0,122420.0,0.14124]
[1755115529307,0.06884771,122430.0,122420.0,0.14324]
[1755115529636,0.06762253,122430.0,122420.0,0.14324]
[1755115530133,0.06762253,122430.0,122420.0,0.58203942]
[1755115530746,0.002,122430.0,122420.0,0.91085169]
[1755115530983,0.002,122430.0,122420.0,0.93585169]
[1755115531394,0.002,122430.0,122420.0,1.07209169]
[1755115531605,0.002,122430.0,122420.0,1.36977169]
[1755115531770,0.002,122430.0,122420.0,1.39425369]
[1755115531968,0.06684771,122450.0,122440.0,0.04244902]
[1755115532172,0.06684771,122450.0,122440.0,0.15556902]
[1755115532370,0.06891771,122450.0,122440.0,0.13624]
[1755115532618,0.07203771,122450.0,122420.0,0.960442]
[1755115532866,0.06684771,122430.0,122420.0,0.97389102]
[1755115533043,0.06684771,122430.0,122420.0,1.11201102]
[1755115533242,0.06384771,122430.0,122420.0,1.00899102]
[1755115533675,0.06384771,122430.0,122420.0,0.83815102]
[1755115533874,0.06384771,122430.0,122420.0,0.70191102]
[1755115534190,0.06384771,122430.0,122420.0,0.83815102]
[1755115534374,0.06484771,122430.0,122420.0,0.70591102]
[1755115534558,0.06484771,122430.0,122420.0,0.84215102]
[1755115534968,0.06484771,122430.0,122420.0,1.27977044]
[1755115535160,0.06584771,122430.0,122420.0,1.28277044]
[1755115535498,0.06584771,122430.0,122420.0,1.01467044]
[1755115535793,0.06584771,122430.0,122420.0,0.98967044]
[1755115536000,0.06584771,122430.0,122420.0,1.01467044]
[1755115537128,0.002,122430.0,122420.0,1.01585044]
[1755115538565,0.002,122430.0,122420.0,0.87961044]
[1755115538746,0.002,122430.0,122420.0,1.18430369]
[1755115540705,0.002,122430.0,122420.0,1.18426369]